[Event "Live Chess"]
[Site "Chess.com"]
[Date "2023.05.20"]
[Round "-"]
[White "TobyQuaite"]
[Black "BillythekidFellowes"]
[Result "0-1"]
[WhiteElo "1693"]
[BlackElo "2013"]
[TimeControl "300"]
[EndTime "11:16:36 PDT"]
[Termination "BillythekidFellowes won by resignation"]

1. e4 {[%clk 0:04:59.6]} 1... Nc6 {[%clk 0:04:57]} 2. d4 {[%clk 0:04:57.1]} 2...
d5 {[%clk 0:04:54.9]} 3. exd5 {[%clk 0:04:50.9]} 3... Qxd5 {[%clk 0:04:54]} 4.
Nf3 {[%clk 0:04:50.6]} 4... e5 {[%clk 0:04:52]} 5. Nc3 {[%clk 0:04:48.6]} 5...
Bb4 {[%clk 0:04:49.6]} 6. dxe5 {[%clk 0:04:42.9]} 6... Qxd1+ {[%clk 0:04:47.7]}
7. Kxd1 {[%clk 0:04:42.8]} 7... Bg4 {[%clk 0:04:45.4]} 8. Bf4 {[%clk 0:04:40.3]}
8... O-O-O+ {[%clk 0:04:42.7]} 9. Kc1 {[%clk 0:04:39.2]} 9... Nge7 {[%clk
0:04:29]} 10. Bd3 {[%clk 0:04:16.4]} 10... Bxc3 {[%clk 0:04:25.4]} 11. bxc3
{[%clk 0:04:15.1]} 11... Nd5 {[%clk 0:04:23.8]} 12. Bd2 {[%clk 0:04:08.1]} 12...
Bxf3 {[%clk 0:04:19.7]} 13. gxf3 {[%clk 0:04:08]} 13... Nxe5 {[%clk 0:04:18.1]}
14. Be4 {[%clk 0:04:01.3]} 14... g6 {[%clk 0:04:11.9]} 15. f4 {[%clk 0:03:48.3]}
15... Nc4 {[%clk 0:04:02]} 16. Be1 {[%clk 0:03:31.4]} 16... Nxf4 {[%clk
0:03:57.1]} 17. Rb1 {[%clk 0:03:27.2]} 0-1

[Event "Live Chess"]
[Site "Chess.com"]
[Date "2023.05.20"]
[Round "-"]
[White "Leonid_Starozhilov"]
[Black "Trendle"]
[Result "1-0"]
[WhiteElo "2653"]
[BlackElo "2665"]
[TimeControl "300"]
[EndTime "11:16:37 PDT"]
[Termination "Leonid_Starozhilov won by resignation"]

1. e4 {[%clk 0:04:58.9]} 1... e6 {[%clk 0:04:56.5]} 2. d4 {[%clk 0:04:57.5]}
2... d5 {[%clk 0:04:55.7]} 3. Nc3 {[%clk 0:04:56.3]} 3... Nc6 {[%clk 0:04:53.5]}
4. Nf3 {[%clk 0:04:54.5]} 4... Nf6 {[%clk 0:04:49.8]} 5. Bg5 {[%clk 0:04:49.8]}
5... Be7 {[%clk 0:04:48]} 6. Bxf6 {[%clk 0:04:46.9]} 6... Bxf6 {[%clk
0:04:47.1]} 7. Bb5 {[%clk 0:04:46.5]} 7... O-O {[%clk 0:04:43.4]} 8. e5 {[%clk
0:04:33]} 8... Be7 {[%clk 0:04:40.9]} 9. O-O {[%clk 0:04:32.8]} 9... Bd7 {[%clk
0:04:36.3]} 10. Re1 {[%clk 0:04:30.2]} 10... Na5 {[%clk 0:04:32.5]} 11. a3
{[%clk 0:04:08.5]} 11... Bxb5 {[%clk 0:04:24.1]} 12. Nxb5 {[%clk 0:04:08.4]}
12... a6 {[%clk 0:04:18.1]} 13. Nc3 {[%clk 0:04:06.8]} 13... Nc4 {[%clk
0:04:12.5]} 14. Qc1 {[%clk 0:03:28.7]} 14... c5 {[%clk 0:04:03.9]} 15. b3 {[%clk
0:03:21.4]} 15... Nb6 {[%clk 0:03:57.3]} 16. Ne2 {[%clk 0:03:15.8]} 16... Rc8
{[%clk 0:03:51.9]} 17. Qd2 {[%clk 0:03:08.2]} 17... cxd4 {[%clk 0:03:45.9]} 18.
Nfxd4 {[%clk 0:03:00]} 18... Qc7 {[%clk 0:03:41.7]} 19. f4 {[%clk 0:02:56.1]}
19... Nd7 {[%clk 0:03:41.2]} 20. c3 {[%clk 0:02:50.2]} 20... Nc5 {[%clk
0:03:10.1]} 21. Rec1 {[%clk 0:02:28.8]} 21... Ne4 {[%clk 0:03:06.1]} 22. Qe3
{[%clk 0:02:25.4]} 22... Bc5 {[%clk 0:03:00.7]} 23. Ng3 {[%clk 0:02:20.7]} 23...
f5 {[%clk 0:02:21.1]} 24. Nxe4 {[%clk 0:02:05.2]} 24... dxe4 {[%clk 0:02:04.5]}
25. g4 {[%clk 0:01:56.1]} 25... Rfd8 {[%clk 0:01:37.7]} 26. gxf5 {[%clk
0:01:51.6]} 26... exf5 {[%clk 0:01:37.6]} 27. Kg2 {[%clk 0:01:50.3]} 27... Qb6
{[%clk 0:01:33]} 28. b4 {[%clk 0:01:25.6]} 28... Bxd4 {[%clk 0:01:28.6]} 29.
cxd4 {[%clk 0:01:24.9]} 29... Rxc1 {[%clk 0:01:19.3]} 30. Rxc1 {[%clk
0:01:24.8]} 30... Qxd4 {[%clk 0:01:02.4]} 31. Qxd4 {[%clk 0:01:19.4]} 31... Rxd4
{[%clk 0:01:02.3]} 32. e6 {[%clk 0:00:59.5]} 32... e3 {[%clk 0:00:58.3]} 33.
Rc8+ {[%clk 0:00:56.6]} 1-0

[Event "Live Chess"]
[Site "Chess.com"]
[Date "2023.05.20"]
[Round "-"]
[White "aliciabutteriss"]
[Black "defenderalist"]
[Result "0-1"]
[WhiteElo "542"]
[BlackElo "1589"]
[TimeControl "300"]
[EndTime "11:16:37 PDT"]
[Termination "defenderalist won by resignation"]

1. e4 {[%clk 0:04:57.4]} 1... e6 {[%clk 0:04:58]} 2. d4 {[%clk 0:04:55.7]} 2...
d5 {[%clk 0:04:56.8]} 3. Nc3 {[%clk 0:04:53.3]} 3... dxe4 {[%clk 0:04:54.2]} 4.
Nxe4 {[%clk 0:04:52.1]} 4... Nc6 {[%clk 0:04:53]} 5. Be3 {[%clk 0:04:46]} 5...
Bb4+ {[%clk 0:04:46.7]} 6. c3 {[%clk 0:04:44.3]} 6... Be7 {[%clk 0:04:45.9]} 7.
Bd3 {[%clk 0:04:32.3]} 7... Nf6 {[%clk 0:04:44.9]} 8. Nf3 {[%clk 0:04:22.9]}
8... Nxe4 {[%clk 0:04:43.5]} 9. Bxe4 {[%clk 0:04:21]} 9... O-O {[%clk
0:04:41.7]} 10. Qd3 {[%clk 0:03:54.9]} 10... f5 {[%clk 0:04:39.9]} 11. Bxc6
{[%clk 0:03:50]} 11... bxc6 {[%clk 0:04:39.3]} 12. Ne5 {[%clk 0:03:45.8]} 12...
Bb7 {[%clk 0:04:25.8]} 13. O-O-O {[%clk 0:03:38.4]} 13... Bf6 {[%clk 0:04:13.3]}
14. Nc4 {[%clk 0:03:25.1]} 14... Ba6 {[%clk 0:04:03.9]} 15. Bf4 {[%clk
0:03:04.5]} 15... Bxc4 {[%clk 0:04:01.3]} 16. Qxc4 {[%clk 0:03:03.3]} 16... Rb8
{[%clk 0:03:59.7]} 17. b3 {[%clk 0:02:52.2]} 17... Qd5 {[%clk 0:03:58]} 18. Qxd5
{[%clk 0:02:46.9]} 18... cxd5 {[%clk 0:03:56.9]} 19. Bxc7 {[%clk 0:02:44.1]}
19... Rbc8 {[%clk 0:03:54.3]} 20. Bf4 {[%clk 0:02:41]} 20... Rxc3+ {[%clk
0:03:50.1]} 21. Kb2 {[%clk 0:02:38.6]} 21... Rfc8 {[%clk 0:03:47.1]} 22. Rd2
{[%clk 0:02:28]} 22... h6 {[%clk 0:03:35.7]} 23. Re1 {[%clk 0:02:22.7]} 23... g5
{[%clk 0:03:33.1]} 24. Rxe6 {[%clk 0:02:14.3]} 24... Kf7 {[%clk 0:03:20.9]} 25.
Ree2 {[%clk 0:02:01]} 25... gxf4 {[%clk 0:03:18.7]} 26. Rc2 {[%clk 0:01:59.2]}
26... Rxc2+ {[%clk 0:03:17.2]} 27. Rxc2 {[%clk 0:01:57.6]} 27... Rxc2+ {[%clk
0:03:16.6]} 28. Kxc2 {[%clk 0:01:55.7]} 28... Bxd4 {[%clk 0:03:16.5]} 29. h4
{[%clk 0:01:45.7]} 29... Bxf2 {[%clk 0:03:15.4]} 30. g4 {[%clk 0:01:43.5]} 30...
fxg3 {[%clk 0:03:13.8]} 31. h5 {[%clk 0:01:42]} 31... g2 {[%clk 0:03:12.5]} 32.
Kb2 {[%clk 0:01:41.9]} 32... g1=Q {[%clk 0:03:11]} 33. Ka3 {[%clk 0:01:41.8]}
33... Bc5+ {[%clk 0:03:08.3]} 0-1

[Event "Live Chess"]
[Site "Chess.com"]
[Date "2023.05.20"]
[Round "-"]
[White "DerbyKnight"]
[Black "vinni3012"]
[Result "1-0"]
[WhiteElo "1668"]
[BlackElo "1809"]
[TimeControl "300"]
[EndTime "11:16:39 PDT"]
[Termination "DerbyKnight won by resignation"]

1. d4 {[%clk 0:04:54.8]} 1... d5 {[%clk 0:04:58.8]} 2. Nf3 {[%clk 0:04:52.9]}
2... Nf6 {[%clk 0:04:56.6]} 3. e3 {[%clk 0:04:51.6]} 3... b6 {[%clk 0:04:49.9]}
4. b3 {[%clk 0:04:46.5]} 4... Nbd7 {[%clk 0:04:45.2]} 5. Bb2 {[%clk 0:04:45.8]}
5... Bb7 {[%clk 0:04:40.6]} 6. Bd3 {[%clk 0:04:42.9]} 6... e6 {[%clk 0:04:38.6]}
7. Nbd2 {[%clk 0:04:41.5]} 7... c5 {[%clk 0:04:34.4]} 8. O-O {[%clk 0:04:36.5]}
8... Bd6 {[%clk 0:04:33.4]} 9. Ne5 {[%clk 0:04:33.5]} 9... O-O {[%clk
0:04:22.6]} 10. f4 {[%clk 0:04:30.8]} 10... Re8 {[%clk 0:04:14.2]} 11. Rf3
{[%clk 0:04:14.9]} 11... g6 {[%clk 0:04:12.7]} 12. Rh3 {[%clk 0:04:09.7]} 12...
a6 {[%clk 0:03:47.8]} 13. g4 {[%clk 0:04:00.7]} 13... c4 {[%clk 0:03:30.7]} 14.
bxc4 {[%clk 0:03:57.5]} 14... dxc4 {[%clk 0:03:29.8]} 15. Ndxc4 {[%clk
0:03:52.2]} 15... Bf8 {[%clk 0:03:24.9]} 16. g5 {[%clk 0:03:31]} 16... Ne4
{[%clk 0:03:22.2]} 17. Qg4 {[%clk 0:03:21.9]} 17... Be7 {[%clk 0:03:04.3]} 18.
Qh4 {[%clk 0:03:18.2]} 18... Nf8 {[%clk 0:03:03.4]} 19. Nxf7 {[%clk 0:02:44.1]}
19... Kxf7 {[%clk 0:03:01.4]} 20. Ne5+ {[%clk 0:02:42]} 20... Kg7 {[%clk
0:02:51.7]} 21. Qh6+ {[%clk 0:02:18.8]} 21... Kg8 {[%clk 0:02:47.6]} 22. d5
{[%clk 0:01:55.7]} 22... Qxd5 {[%clk 0:02:24.6]} 23. Nxg6 {[%clk 0:01:32.4]}
23... Nf6 {[%clk 0:02:21.2]} 24. e4 {[%clk 0:01:09]} 24... Qc5+ {[%clk
0:02:19.7]} 25. Kf1 {[%clk 0:01:01.2]} 25... Nxg6 {[%clk 0:00:47.3]} 26. gxf6
{[%clk 0:00:53.7]} 1-0

[Event "Live Chess"]
[Site "Chess.com"]
[Date "2023.05.20"]
[Round "-"]
[White "Supertromp"]
[Black "HoarseyHorsey"]
[Result "1-0"]
[WhiteElo "2181"]
[BlackElo "1384"]
[TimeControl "300"]
[EndTime "11:16:41 PDT"]
[Termination "Supertromp won by resignation"]

1. d4 {[%clk 0:04:59]} 1... Nf6 {[%clk 0:04:58.8]} 2. Bg5 {[%clk 0:04:56.9]}
2... d5 {[%clk 0:04:57.9]} 3. Bxf6 {[%clk 0:04:55.7]} 3... exf6 {[%clk 0:04:57]}
4. e3 {[%clk 0:04:54.6]} 4... Bd6 {[%clk 0:04:55.1]} 5. c4 {[%clk 0:04:53.6]}
5... c6 {[%clk 0:04:51.4]} 6. Nc3 {[%clk 0:04:52.4]} 6... O-O {[%clk 0:04:49]}
7. cxd5 {[%clk 0:04:49.3]} 7... cxd5 {[%clk 0:04:48]} 8. Nf3 {[%clk 0:04:47.6]}
8... Qa5 {[%clk 0:04:40.4]} 9. Bd3 {[%clk 0:04:46.1]} 9... Bg4 {[%clk
0:04:36.6]} 10. O-O {[%clk 0:04:45.1]} 10... Nc6 {[%clk 0:04:34.2]} 11. h3
{[%clk 0:04:43.1]} 11... Bh5 {[%clk 0:04:32.5]} 12. Be2 {[%clk 0:04:36.8]} 12...
a6 {[%clk 0:04:31.4]} 13. Nh4 {[%clk 0:04:34.3]} 13... Bxe2 {[%clk 0:04:29.6]}
14. Qxe2 {[%clk 0:04:33.4]} 14... Rac8 {[%clk 0:04:16.4]} 15. Qg4 {[%clk
0:04:32.3]} 15... Ne7 {[%clk 0:04:08.1]} 16. e4 {[%clk 0:04:27.2]} 16... dxe4
{[%clk 0:04:02.6]} 17. Nxe4 {[%clk 0:04:26.2]} 17... Qc7 {[%clk 0:03:56.8]} 18.
Nxf6+ {[%clk 0:04:24.6]} 18... Kh8 {[%clk 0:03:52.3]} 19. Nh5 {[%clk 0:03:51]}
19... Ng6 {[%clk 0:03:49.3]} 20. Nxg6+ {[%clk 0:03:47.8]} 20... fxg6 {[%clk
0:03:49.2]} 21. Ng3 {[%clk 0:03:46.2]} 21... Bxg3 {[%clk 0:03:43.3]} 22. fxg3
{[%clk 0:03:44.9]} 22... Qc2 {[%clk 0:03:32.2]} 23. Kh2 {[%clk 0:03:41.1]} 23...
Rcd8 {[%clk 0:03:21.9]} 24. Rxf8+ {[%clk 0:03:34.8]} 24... Rxf8 {[%clk
0:03:21.8]} 25. Re1 {[%clk 0:03:22.7]} 25... Qxb2 {[%clk 0:03:11.8]} 26. Qd7
{[%clk 0:03:20.6]} 26... Qf2 {[%clk 0:02:59.6]} 27. Re7 {[%clk 0:03:16.1]} 27...
Qf6 {[%clk 0:02:57.3]} 28. d5 {[%clk 0:03:07.8]} 28... h5 {[%clk 0:02:48.8]} 29.
h4 {[%clk 0:02:53.8]} 29... b5 {[%clk 0:02:32.6]} 30. Re6 {[%clk 0:02:42.6]}
30... Qf5 {[%clk 0:02:21.2]} 31. Qd6 {[%clk 0:02:17.1]} 31... Rf6 {[%clk
0:02:13.4]} 32. Re8+ {[%clk 0:02:09.2]} 32... Kh7 {[%clk 0:02:12.2]} 33. Qd8
{[%clk 0:02:04.7]} 33... g5 {[%clk 0:02:08.2]} 34. Rh8+ {[%clk 0:02:02.5]} 34...
Kg6 {[%clk 0:02:06.6]} 35. Qe8+ {[%clk 0:01:53.3]} 35... Rf7 {[%clk 0:02:04.3]}
36. hxg5 {[%clk 0:01:34.5]} 36... Qxg5 {[%clk 0:01:55.1]} 37. d6 {[%clk
0:01:25.6]} 37... Qd5 {[%clk 0:01:47]} 38. Rf8 {[%clk 0:01:12.6]} 38... Kf6
{[%clk 0:01:45.5]} 39. Rxf7+ {[%clk 0:01:07.8]} 39... Qxf7 {[%clk 0:01:43.8]}
40. d7 {[%clk 0:01:07.1]} 1-0

[Event "Live Chess"]
[Site "Chess.com"]
[Date "2023.05.20"]
[Round "-"]
[White "diana21strabt"]
[Black "chessleanstrategist"]
[Result "1-0"]
[WhiteElo "1708"]
[BlackElo "400"]
[TimeControl "300"]
[EndTime "11:16:42 PDT"]
[Termination "diana21strabt won on time"]

1. e4 {[%clk 0:04:52.7]} 1... d6 {[%clk 0:04:56.9]} 2. d4 {[%clk 0:04:51.4]}
2... Nf6 {[%clk 0:04:54.4]} 3. Nc3 {[%clk 0:04:48.6]} 3... Nc6 {[%clk
0:04:48.9]} 4. Nf3 {[%clk 0:04:47.2]} 4... g6 {[%clk 0:04:44.1]} 5. Bb5 {[%clk
0:04:46.1]} 5... Bd7 {[%clk 0:04:41.1]} 6. O-O {[%clk 0:04:42.1]} 6... Bg7
{[%clk 0:04:38.9]} 7. h3 {[%clk 0:04:38.3]} 7... a5 {[%clk 0:04:28.6]} 8. d5
{[%clk 0:04:34.1]} 8... Ne5 {[%clk 0:04:22.2]} 9. Bxd7+ {[%clk 0:04:32.3]} 9...
Qxd7 {[%clk 0:04:18.4]} 10. Nxe5 {[%clk 0:04:31]} 10... dxe5 {[%clk 0:04:16.2]}
11. f4 {[%clk 0:04:29.6]} 11... exf4 {[%clk 0:03:25.5]} 12. Bxf4 {[%clk
0:04:27.4]} 12... Nh5 {[%clk 0:03:16.5]} 13. Bd2 {[%clk 0:04:13.4]} 13... O-O
{[%clk 0:02:32]} 14. Qf3 {[%clk 0:04:05.5]} 14... c5 {[%clk 0:02:04.8]} 15. Rad1
{[%clk 0:03:58.5]} 15... Rad8 {[%clk 0:01:59.3]} 16. Be3 {[%clk 0:03:54.2]}
16... Qc7 {[%clk 0:01:46.3]} 17. a4 {[%clk 0:03:47.3]} 17... b6 {[%clk
0:01:42.6]} 18. Nb5 {[%clk 0:03:46.1]} 18... Qb8 {[%clk 0:01:22.4]} 19. c3
{[%clk 0:03:37.3]} 19... Nf6 {[%clk 0:01:12.5]} 20. Bf4 {[%clk 0:03:32.8]} 20...
Qb7 {[%clk 0:00:36.7]} 21. c4 {[%clk 0:03:25.9]} 21... Nd7 {[%clk 0:00:28.7]}
22. e5 {[%clk 0:03:23.9]} 22... Bxe5 {[%clk 0:00:20.2]} 23. Bxe5 {[%clk
0:03:21.1]} 23... Nxe5 {[%clk 0:00:19.1]} 24. Qe4 {[%clk 0:03:19]} 24... Nd7
{[%clk 0:00:06.5]} 25. Qxe7 {[%clk 0:03:16.3]} 1-0

[Event "Live Chess"]
[Site "Chess.com"]
[Date "2023.05.20"]
[Round "-"]
[White "garyjc"]
[Black "zdanevych"]
[Result "0-1"]
[WhiteElo "1036"]
[BlackElo "1546"]
[TimeControl "300"]
[EndTime "11:16:46 PDT"]
[Termination "zdanevych won by resignation"]

1. e4 {[%clk 0:04:58.7]} 1... d5 {[%clk 0:04:57.1]} 2. exd5 {[%clk 0:04:57.4]}
2... c6 {[%clk 0:04:56.5]} 3. dxc6 {[%clk 0:04:55]} 3... Nxc6 {[%clk 0:04:56.4]}
4. Nc3 {[%clk 0:04:54.3]} 4... a6 {[%clk 0:04:55.8]} 5. d3 {[%clk 0:04:50.2]}
5... Nf6 {[%clk 0:04:55]} 6. Nf3 {[%clk 0:04:47.6]} 6... h6 {[%clk 0:04:54.3]}
7. Bd2 {[%clk 0:04:42.3]} 7... e6 {[%clk 0:04:53.3]} 8. Qe2 {[%clk 0:04:36.8]}
8... b5 {[%clk 0:04:51.7]} 9. Ne5 {[%clk 0:04:25]} 9... Bb7 {[%clk 0:04:50.2]}
10. Nxc6 {[%clk 0:04:22.9]} 10... Bxc6 {[%clk 0:04:50.1]} 11. O-O-O {[%clk
0:04:13.5]} 11... b4 {[%clk 0:04:43.8]} 12. Ne4 {[%clk 0:04:07.1]} 12... Be7
{[%clk 0:04:39.9]} 13. Kb1 {[%clk 0:04:04.9]} 13... O-O {[%clk 0:04:36.5]} 14.
Nxf6+ {[%clk 0:03:51.6]} 14... Bxf6 {[%clk 0:04:35.4]} 15. Bxb4 {[%clk
0:03:50.1]} 15... Re8 {[%clk 0:04:31.1]} 16. Qd2 {[%clk 0:03:45.7]} 16... a5
{[%clk 0:04:29.8]} 17. Bc3 {[%clk 0:03:43]} 17... Be7 {[%clk 0:04:21.6]} 18. Qe3
{[%clk 0:03:29.3]} 18... a4 {[%clk 0:04:17.2]} 19. Qg3 {[%clk 0:03:28]} 19...
Bf6 {[%clk 0:04:09.5]} 20. Bxf6 {[%clk 0:03:23.4]} 20... Qxf6 {[%clk 0:04:09.4]}
21. c3 {[%clk 0:03:06.4]} 21... Reb8 {[%clk 0:04:05]} 22. Rd2 {[%clk 0:02:53.7]}
22... Qxc3 {[%clk 0:04:02.5]} 23. Qe3 {[%clk 0:02:27.3]} 23... Bd5 {[%clk
0:03:51.7]} 24. Rc2 {[%clk 0:02:25.4]} 24... Qb4 {[%clk 0:03:44.6]} 25. d4
{[%clk 0:02:10.7]} 25... a3 {[%clk 0:03:40.1]} 26. b3 {[%clk 0:02:07.3]} 26...
Bxb3 {[%clk 0:03:23.6]} 27. axb3 {[%clk 0:01:59.5]} 27... Qxb3+ {[%clk
0:03:23.5]} 28. Qxb3 {[%clk 0:01:58]} 28... Rxb3+ {[%clk 0:03:23.3]} 29. Ka2
{[%clk 0:01:55]} 29... Rab8 {[%clk 0:03:16.1]} 30. Bc4 {[%clk 0:01:51.9]} 30...
Rb2+ {[%clk 0:03:12.8]} 31. Rxb2 {[%clk 0:01:48.2]} 31... axb2 {[%clk
0:03:12.2]} 32. Ka3 {[%clk 0:01:47.8]} 32... b1=Q {[%clk 0:03:10.8]} 33. Rxb1
{[%clk 0:01:45.7]} 33... Rxb1 {[%clk 0:03:10.7]} 34. Ka4 {[%clk 0:01:41.5]}
34... Rb2 {[%clk 0:03:09]} 35. Bb5 {[%clk 0:01:34]} 35... Rxf2 {[%clk
0:03:07.5]} 0-1

[Event "Live Chess"]
[Site "Chess.com"]
[Date "2023.05.20"]
[Round "-"]
[White "stevegleds"]
[Black "AttackingSnowLeopard"]
[Result "0-1"]
[WhiteElo "614"]
[BlackElo "2082"]
[TimeControl "300"]
[EndTime "11:16:47 PDT"]
[Termination "AttackingSnowLeopard won by resignation"]

1. e4 {[%clk 0:04:57.3]} 1... e5 {[%clk 0:04:59.1]} 2. Nf3 {[%clk 0:04:50.5]}
2... Nc6 {[%clk 0:04:58.5]} 3. Nc3 {[%clk 0:04:46.3]} 3... Nf6 {[%clk 0:04:57]}
4. Bc4 {[%clk 0:04:42.8]} 4... Bc5 {[%clk 0:04:56]} 5. d3 {[%clk 0:04:40]} 5...
O-O {[%clk 0:04:54]} 6. O-O {[%clk 0:04:38.8]} 6... h6 {[%clk 0:04:52.8]} 7. Re1
{[%clk 0:04:35.1]} 7... d6 {[%clk 0:04:52.2]} 8. h3 {[%clk 0:04:32.9]} 8... Na5
{[%clk 0:04:51]} 9. a3 {[%clk 0:04:22.5]} 9... Nxc4 {[%clk 0:04:48.9]} 10. dxc4
{[%clk 0:04:16.3]} 10... a6 {[%clk 0:04:48.1]} 11. b4 {[%clk 0:04:14.2]} 11...
Ba7 {[%clk 0:04:46.2]} 12. Nd5 {[%clk 0:04:10.9]} 12... c6 {[%clk 0:04:42.7]}
13. Nxf6+ {[%clk 0:04:05.8]} 13... Qxf6 {[%clk 0:04:42.6]} 14. c3 {[%clk
0:03:56.7]} 14... Rd8 {[%clk 0:04:32.6]} 15. Be3 {[%clk 0:03:50.4]} 15... Bxe3
{[%clk 0:04:31.5]} 16. Rxe3 {[%clk 0:03:45.4]} 16... Be6 {[%clk 0:04:30.8]} 17.
Rd3 {[%clk 0:03:36.2]} 17... Bxc4 {[%clk 0:04:28.9]} 18. Rxd6 {[%clk 0:03:32.5]}
18... Rxd6 {[%clk 0:04:27.1]} 19. Qxd6 {[%clk 0:03:28.7]} 19... Qxd6 {[%clk
0:04:26.2]} 0-1

[Event "Live Chess"]
[Site "Chess.com"]
[Date "2023.05.20"]
[Round "-"]
[White "Richardallis"]
[Black "Vladyslav2008"]
[Result "0-1"]
[WhiteElo "1672"]
[BlackElo "2174"]
[TimeControl "300"]
[EndTime "11:16:56 PDT"]
[Termination "Vladyslav2008 won by resignation"]

1. d4 {[%clk 0:04:58]} 1... Nf6 {[%clk 0:04:58.3]} 2. Nf3 {[%clk 0:04:57.2]}
2... g6 {[%clk 0:04:56.9]} 3. Bg5 {[%clk 0:04:56.4]} 3... Bg7 {[%clk 0:04:55.9]}
4. Nbd2 {[%clk 0:04:55.3]} 4... O-O {[%clk 0:04:54.2]} 5. c3 {[%clk 0:04:53.9]}
5... d6 {[%clk 0:04:53.5]} 6. e4 {[%clk 0:04:52.7]} 6... Nc6 {[%clk 0:04:52.1]}
7. Bc4 {[%clk 0:04:51.8]} 7... h6 {[%clk 0:04:48.3]} 8. Bxf6 {[%clk 0:04:49.4]}
8... Bxf6 {[%clk 0:04:46.5]} 9. O-O {[%clk 0:04:48.1]} 9... Bg7 {[%clk
0:04:44.9]} 10. Qe2 {[%clk 0:04:46.8]} 10... e5 {[%clk 0:04:40.9]} 11. dxe5
{[%clk 0:04:45.6]} 11... Nxe5 {[%clk 0:04:37.6]} 12. Nxe5 {[%clk 0:04:44.9]}
12... Bxe5 {[%clk 0:04:36.3]} 13. f4 {[%clk 0:04:43.1]} 13... Bg7 {[%clk
0:04:35.1]} 14. Rae1 {[%clk 0:04:40.8]} 14... Re8 {[%clk 0:04:33.1]} 15. Qf3
{[%clk 0:04:38]} 15... c6 {[%clk 0:04:31]} 16. Bb3 {[%clk 0:04:34.2]} 16... a5
{[%clk 0:04:26]} 17. a4 {[%clk 0:04:31.1]} 17... Be6 {[%clk 0:04:05]} 18. f5
{[%clk 0:04:25.3]} 18... Qb6+ {[%clk 0:04:00.6]} 19. Kh1 {[%clk 0:04:20.5]}
19... Bxb3 {[%clk 0:03:58.7]} 20. fxg6 {[%clk 0:04:19.1]} 20... fxg6 {[%clk
0:03:56.7]} 21. Nxb3 {[%clk 0:04:18.4]} 21... Qxb3 {[%clk 0:03:53.3]} 22. Qg3
{[%clk 0:04:15.6]} 22... Qe6 {[%clk 0:03:48.7]} 23. Rf3 {[%clk 0:04:09.6]} 23...
Rf8 {[%clk 0:03:46.3]} 24. Rd1 {[%clk 0:04:07.8]} 24... Be5 {[%clk 0:03:44.2]}
25. Qh4 {[%clk 0:04:04.5]} 25... Rxf3 {[%clk 0:03:38.9]} 26. gxf3 {[%clk
0:04:02.5]} 26... Kg7 {[%clk 0:03:31.2]} 27. Rg1 {[%clk 0:03:56.5]} 27... Rf8
{[%clk 0:03:28.2]} 28. Qf2 {[%clk 0:03:49.8]} 28... Qh3 {[%clk 0:03:23.6]} 0-1